Cogmind - Beta 15 @@@ ROGUE MODE // 2025.07.30 @ 13:42:28 Player: a.r.i. Result: Destroyed by S-10 Pest with Light Assault Rifle Performance ------------- Evolutions (1) 500 Regions Visited (2) 400 Robots Destroyed (39) 195 Value Destroyed (876) 876 Prototype IDs (1) 20 Alien Tech Used (0) 0 Bonus (0) 0 TOTAL SCORE: 1991 Bonus ------- None Cogmind --------- Core Integrity 0/400 Matter 261/300 Energy 80/100 System Corruption 0% Temperature Cool (0) Movement Core (50) Location -9/Materials Parts ------- > --- POWER (2) -------- (None) > --- PROPULSION (2) --- (None) > --- UTILITY (3) ------ Utility Shielding > --- WEAPON (2) ------- Light Assault Rifle > --- INVENTORY (5) ---- Ion Engine Light Ion Engine Improved Terrain Scanner Peak State ------------ > --- POWER ------------ Ion Engine Light Ion Engine > --- PROPULSION ------- Aluminum Leg Aluminum Leg > --- UTILITY ---------- Small Storage Unit Seismic Detector Utility Shielding > --- WEAPON ----------- Medium Laser Improved Medium Laser > --- INVENTORY -------- Ion Engine Light Ion Engine Light Ion Engine Aluminum Leg Hover Unit Heat Sink Improved Terrain Scanner Grenade Launcher [Rating: 12] Favorites ----------- Power Ion Engine Engine Ion Engine Power Core Light Nuclear Core Propulsion Aluminum Leg Leg Aluminum Leg Hover Unit Hover Unit Utility Small Storage Unit Device Improved Terrain Scanner Storage Small Storage Unit Protection Utility Shielding Weapon Medium Laser Energy Gun Medium Laser Ballistic Gun Assault Rifle Ballistic Cannon Light Cannon Launcher Grenade Launcher Build | -11 -10 -9 ------- Run | Yrd Mat Mat Slots Evolved 2 | . . 2 Power 1 | . . 1 Propulsion . | . . . Utility 1 | . . 1 Weapon . | . . . Parts Attached 32 | 9 9 14 Power 9 | 2 3 4 Engine 8 | 2 2 4 Core 1 | . 1 . Reactor . | . . . Propulsion 10 | 2 3 5 Treads . | . . . Leg 9 | 2 3 4 Wheel . | . . . Hover 1 | . . 1 Flight . | . . . Utility 5 | 2 1 2 Device 3 | 1 . 2 Storage 1 | 1 . . Processor . | . . . Hackware . | . . . Protection 1 | . 1 . Artifact . | . . . Weapon 8 | 3 2 3 Energy Gun 2 | 1 . 1 Energy Cannon . | . . . Ballistic Gun 4 | 2 1 1 Ballistic Cannon 1 | . 1 . Launcher 1 | . . 1 Special Weapon . | . . . Impact Weapon . | . . . Slashing Weapon . | . . . Piercing Weapon . | . . . Special Melee Weapon . | . . . Unidentified Prototypes 1 | . . 1 Parts Lost 20 | . 4 16 Power 6 | . 1 5 Propulsion 6 | . 1 5 Utility 3 | . . 3 Weapon 5 | . 2 3 Highest Loss Streak 9 | . 4 9 To Critical Strikes . | . . . Average Backups 6 | 4 7 6 Power 1 | 1 2 2 Propulsion 2 | 2 1 1 Utility 1 | . 1 1 Weapon 1 | . 1 . Tool/Special . | . . . Unused Backups 5 | 2 2 1 Power 1 | . . 1 Propulsion 4 | 2 2 . Utility . | . . . Weapon . | . . . Tool/Special . | . . . Average Slot Usage (%) 93 | . 97 91 Engine 15 | . 10 20 Core 1 | . 3 . Leg 23 | . 27 19 Device 11 | . 12 10 Storage 12 | . 14 10 Protection 6 | . 1 9 Energy Gun 10 | . 3 16 Ballistic Gun 5 | . 12 . Ballistic Cannon 4 | . 9 . Launcher 1 | . . 2 Peak Build Rating 12 | 9 11 12 Average Rating 9 | 6 9 10 On Entrance 5 | . 9 8 Naked Turns . | . . . Heaviest Build 23 | 15 16 23 Greatest Support 20 | 20 20 20 Greatest Overweight (x) 4 | 2 . 4 Average Overweight (x) . | . . . Largest Inventory Capacity 8 | 8 8 8 Average Capacity 7 | 7 8 7 Most Carried 8 | 7 8 8 Average Carried 6 | 4 7 6 Final Capacity 8 | 8 8 5 Final Carried 8 | 6 8 3 Class Distribution -------------------- 52% | Mutant 47% | Scavenger-Mutant Dominant Class ---------------- Mutant | -10/Materials Scavenger-Mutant | -9/Materials Resources | -11 -10 -9 ----------- Run | Yrd Mat Mat Matter Collected 803 | 332 285 186 Remotely . | . . . Salvage Created 1128 | 193 495 440 Parts 75 | 19 33 23 Haulers Intercepted . | . . . Recyclers Shooed 2 | . . 2 Parts Field Recycled . | . . . Retrieved Matter . | . . . Parts Self-Destructed . | . . . Prevented . | . . . Kills | -11 -10 -9 ------- Run | Yrd Mat Mat Combat Hostiles Destroyed 25 | . 15 10 Guns 10 | . 6 4 Cannons 9 | . 9 . AOE 6 | . . 6 Classes Destroyed 8 | 3 2 3 Worker 2 | 1 1 . Builder 2 | . . 2 Tunneler 4 | 4 . . Recycler 4 | 1 1 2 Watcher 2 | . . 2 Swarmer 7 | . 6 1 Grunt 16 | . 9 7 Sentry 2 | . . 2 Best Kill Streak 8 | 5 5 8 Combat Bots Only 5 | . 5 4 Max Kills in Single Turn 2 | 1 1 2 Gunslinging . | . . . Exploded 1 | . . 1 Melee . | . . . Uniques/NPCs Destroyed . | . . . Combat | -11 -10 -9 -------- Run | Yrd Mat Mat Hostile Shots Fired 286 | . 119 167 Missed 85 | . 39 46 Hits 201 | . 80 121 Projectile 201 | . 80 121 Critical Strikes 3 | . . 3 Actively Blocked 1 | . . 1 Damage Taken 2137 | . 791 1346 Core 529 | . 128 401 Absorbed by Shields . | . . . Redirected to Shielding 27 | . . 27 Core Remaining (%) 74 | 100 48 . Volleys Fired 90 | 14 40 36 Largest 2 | 2 2 2 Hottest 106 | 70 80 106 Shots Fired 162 | 28 74 60 Gun 118 | 28 40 50 Cannon 34 | . 34 . Launcher 10 | . . 10 Special . | . . . Kinetic 81 | 14 67 . Thermal 71 | 14 7 50 Explosive 10 | . . 10 Electromagnetic . | . . . Robot Hit Streak 10 | 10 6 10 Robot Miss Streak 6 | 2 6 2 Penetration Max . | . . . Secondary Targets . | . . . Shots Hit Robots 97 | 20 37 40 Core Hits 59 | 7 21 31 Critical Kills . | . . . Critical Parts Destroyed . | . . . Critical Strikes 3 | 1 . 2 Burn 3 | 1 . 2 Melee Attacks . | . . . Impact . | . . . Slashing . | . . . Piercing . | . . . Sneak Attacks . | . . . Combat Hostiles . | . . . Follow-up Attacks . | . . . Damage Inflicted 2026 | 253 610 1163 Guns 974 | 253 271 450 Cannons 339 | . 339 . Explosions 713 | . . 713 Melee . | . . . Ramming . | . . . Kinetic 687 | 152 535 . Thermal 626 | 101 75 450 Explosive 713 | . . 713 Electromagnetic . | . . . Impact . | . . . Slashing . | . . . Piercing . | . . . Highest Corruption . | . . . Average Corruption . | . . . Corruption Purged . | . . . Corruption Blocked . | . . . Overload Shots . | . . . Overflow Damage 18 | . . 18 Projectiles . | . . . Explosions 18 | . . 18 Melee . | . . . Knockbacks 3 | . 3 . Impact . | . . . Kinetic 3 | . 3 . Secondary . | . . . Self-Inflicted Damage 114 | . . 114 Shots 6 | . . 6 Rammed . | . . . Targets Rammed . | . . . Kicked . | . . . Crushed . | . . . Highest Temperature 309 | 81 66 309 Average Temperature 55 | 30 16 78 Received Heat Transfer 600 | . 267 333 Effects 1 | . . 1 Energy Bleed 1 | . . 1 Siege Activations . | . . . Martial Activations . | . . . Shielding Activations . | . . . Robots Disrupted . | . . . Combat Hostiles . | . . . Robots Corrupted . | . . . Combat Hostiles . | . . . Parts Fried . | . . . Impact Corruptions . | . . . Robots Melted . | . . . Combat Hostiles . | . . . Parts Melted 5 | . 1 4 Heat Transferred 1887 | 370 222 1295 Parts Sabotaged . | . . . Parts Stolen . | . . . Parts Stripped . | . . . Power Chain Reactions . | . . . Alert | -11 -10 -9 ------- Run | Yrd Mat Mat Maximum Alert Level . | . . . Low Security (%) 100 | 100 100 100 Level 1 . | . . . Level 2 . | . . . Level 3 . | . . . Level 4 . | . . . Level 5 . | . . . High Security . | . . . Max Security . | . . . Peak Influence 190 | 20 175 190 Initial 55 | . . 55 Average 61 | 1 83 71 Influence Increases 865 | 30 375 460 Destroy 0b10 Robot/C 500 | . 300 200 Destroy 0b10 Robot/NC 70 | 30 10 30 Destroy Leader 114 | . 50 64 Disable Machine 75 | . 15 60 Destroy Structure 31 | . . 31 Lose Combat Pursuer 75 | . . 75 Influence Decreases 754 | 30 242 482 Entered New Map 78 | . . 78 Time Decay 486 | 30 202 254 Lost Part 190 | . 40 150 Squads Dispatched 4 | . 2 2 Investigation 1 | . . 1 Extermination . | . . . Reinforcement 3 | . 2 1 Assault . | . . . Garrison . | . . . Intercept . | . . . Searches Triggered . | . . . Construction Impeded . | . . . Haulers Reinforced . | . . . Active Scanning Responses . | . . . Cargo Convoy Interrupts . | . . . Stealth | -11 -10 -9 --------- Run | Yrd Mat Mat Distress Signals 4 | . 1 3 Communications Jammed . | . . . Distress Signals . | . . . Times Spotted 45 | . 22 23 Peak Tracking Total 8 | . 8 7 Tactical Retreats 3 | . . 3 Traps | -11 -10 -9 ------- Run | Yrd Mat Mat Traps Triggered 2 | . . 2 Indirectly . | . . . Trap Hack Attempts . | . . . Triggered . | . . . Disarmed . | . . . Reprogrammed . | . . . Reused . | . . . Traps Extracted . | . . . Installed . | . . . Triggered . | . . . Machines | -11 -10 -9 ---------- Run | Yrd Mat Mat Machines Disabled 5 | . 1 4 Max in Single Turn 2 | . 1 2 Machines Repaired . | . . . Machines Dismantled . | . . . Machines Sabotaged . | . . . Overloaded Fab Kills . | . . . Hacking | -11 -10 -9 --------- Run | Yrd Mat Mat Machines Accessed 3 | . 2 1 Terminals 2 | . 1 1 Fabricators . | . . . Repair Stations . | . . . Recycling Units 1 | . 1 . Scanalyzers . | . . . Garrison Access . | . . . Total Hacks 9 | . 7 2 Successful 5 | . 5 . Failed 4 | . 2 2 Catastrophic 1 | . . 1 Database Lockouts . | . . . Manual . | . . . Terminals 5 | . 3 2 Fabricators . | . . . Repair Stations . | . . . Recycling Units 4 | . 4 . Scanalyzers . | . . . Garrison Access . | . . . Terminal Hacks 2 | . 2 . Record 2 | . 2 . Fabricator Hacks . | . . . Repair Station Hacks . | . . . Recycling Unit Hacks 3 | . 3 . Process 1 | . 1 . Report Inventory 1 | . 1 . Retrieve Matter 1 | . 1 . Scanalyzer . | . . . Garrison Access Hacks . | . . . Unauthorized Hacks . | . . . Terminals . | . . . Fabricators . | . . . Repair Stations . | . . . Recycling Units . | . . . Scanalyzers . | . . . Garrison Access . | . . . Data Cores Recovered . | . . . Used . | . . . Hacking Detections 3 | . 2 1 Full Trace Events . | . . . Feedback Events . | . . . Feedback Blocked . | . . . Robot Schematics Acquired . | . . . Robots Built . | . . . Authchips . | . . . Time . | . . . Total Robot Build Rating . | . . . Part Schematics Acquired . | . . . Parts Built . | . . . Authchips . | . . . Time . | . . . Total Part Build Rating . | . . . Parts Repaired . | . . . Time . | . . . Parts Recycled . | . . . Recycled Matter 11 | . 11 . Retrieved Matter 11 | . 11 . Retrieved Components . | . . . Parts Scanalyzed . | . . . Part Schematics Acquired . | . . . Parts Damaged . | . . . Bothacking | -11 -10 -9 ------------ Run | Yrd Mat Mat Used RIF Installer . | . . . Robots Hacked . | . . . Non-combat . | . . . Combat . | . . . Robot Hacks Applied . | . . . Relay Couplers Released . | . . . Fabnet Peak Effective % . | . . . Robots Rewired . | . . . Allies Hacked . | . . . Hacks Repelled . | . . . Allies | -11 -10 -9 -------- Run | Yrd Mat Mat Total Allies . | . . . Largest Group . | . . . Highest-Rated Group . | . . . Highest-Rated Ally . | . . . Total Orders . | . . . Ally Attacks . | . . . Total Damage . | . . . Kills . | . . . Allies Corrupted . | . . . Allies Melted . | . . . Intel | -11 -10 -9 ------- Run | Yrd Mat Mat Active Infowar (turns) 995 | 98 406 491 Terrain 504 | 98 406 . Seismic 491 | . . 491 Robot Analysis Total . | . . . Derelict Logs Recovered . | . . . Drone Launches . | . . . Drone Recoveries . | . . . Exploration | -11 -10 -9 ------------- Run | Yrd Mat Mat Turns Passed 1309 | 258 469 582 Spaces Moved 616 | 129 270 217 Core 32 | 18 . 14 Treads . | . . . Legs 581 | 111 270 200 Wheels . | . . . Hover 3 | . . 3 Flight . | . . . Fastest Speed 50 | 50 120 50 Average Speed 126 | 119 120 139 Slowest Speed 250 | 150 120 250 Overloaded Moves . | . . . Propulsion Burnouts . | . . . Robots Hopped . | . . . Potential Cave-ins 6 | . . 6 Cave-ins Triggered . | . . . Exploration Rate (%) 24 | 7 51 16 Regions Visited 2 Branch Regions . Pre-discovered Areas . | . . . Known Exits Taken . | . . . Unknown Exits Taken 2 | 1 1 . Scrap Searched . | . . . Spaces Dug . | . . . Terrain Destroyed 42 | . . 42 Melee . | . . . Projectile . | . . . AOE 42 | . . 42 Terrain Rammed . | . . . Walls Destroyed . | . . . Machines Disabled . | . . . Actions | -11 -10 -9 --------- Run | Yrd Mat Mat Total 988 | 206 347 435 Wait 196 | 36 7 153 Move 614 | 128 269 217 Hop . | . . . Pick Up 37 | 16 12 9 Fast Attach . | . . . Attach 28 | 8 7 13 Detach 1 | . 1 . Swap 9 | 1 3 5 Drop 13 | 3 8 2 Fire 90 | 14 40 36 Melee . | . . . Ram . | . . . Kick . | . . . Crush . | . . . Escape Stasis . | . . . Rewire . | . . . Trap . | . . . Miscellaneous . | . . . Route ------- -11/Scrapyard -10/Materials (discovered 2 exits: *Mat x2) -9/Materials History --------- Turn | Location | Event 36 | -11/Scrapyard | Discovered new exit (range 15) 259 | -11/Scrapyard | Entered Materials 331 | -10/Materials | Build established: Mutant 351 | -10/Materials | Discovered new exit (range 16) 604 | -10/Materials | Core integrity fell below 50% 639 | -10/Materials | Lost 4 parts (1p1n2w) 668 | -10/Materials | Discovered new exit (range 3) 728 | -10/Materials | Entered another Materials area 728 | -9/Materials | Evolved 2 slots: Power x1, Utility x1 1098 | -9/Materials | Build established: Scavenger-Mutant 1223 | -9/Materials | Lost 5 parts (2p1n1u1w) 1280 | -9/Materials | Core integrity fell below 50% 1299 | -9/Materials | Core integrity fell below 20% 1310 | -9/Materials | Destroyed by S-10 Pest with Light Assault Rifle Last Messages --------------- R-06 Scavenger collects Sml. Laser. Aluminum Leg destroyed. R-06 Scavenger collects Ion Engine. Med. Laser destroyed. Aluminum Leg destroyed. W-16 Scout sends out distress signal. Lgt. Ion Engine destroyed. R-06 Scavenger collects Aluminum Leg. Hover Unit destroyed. K-01 Serf collects debris. Imp. Ion Engine destroyed. Seismic Detector destroyed. U-05 Engineer builds a Wall. Sml. Storage Unit destroyed. U-05 Engineer lays Concrete. C-30 ARC bursts open, deploying its payload. G-34 Mercenary unfolds itself. S-10 Pest destroyed. Acquired 20 matter. Acquired Lgt. Assault Rifle. Map ----- +----------------------------------------------------+ | ?????????????????????# ## #?????????????? | | ?????????????????????# % ## #?????????????? | | ?????????????????????# """= ## #?????????????? | | ?????????????????????# """" ##% #?????????????? | | ?????????????????????# """" ## #?????????????? | | ?????????????????????# """"" ## #?????????????? | | ?????????????????????# """ ## #?????????????? | | ?????????????????????# ## #?????????????? | | ?????????????????????# ## #?????????????? | | ???????????????????############# ###???????????? | | ?????????########### ####### # #???????????? | | ???????? # ##??????????? | | ???????? T ########+#######????????? | | ???????? #?# % #????????? | | ????????????######## #?# #????????? | | ???????????????????## ##?# " #????????? | | ????????????????????# #### " " " #????????? | | ????????????????????# #### """ """ #????????? | | ????????????????????# % #############????????? | | ????????????????????# * ##????????????????? | | ????????????????????# #????????????????? | | ????????????????????# [ #????????????????? | | ????????????????????# #### ##????????????????? | | ????????????????????# u#*## #????????????????? | | ????????????????????# gs s# #????????????????? | | ????????????????????# #@ # #????????????????? | | ????????????????????# ## # ##????????????????? | | ????????????????????#^ ^#### #?????????????????? | | ???????????????????## ##?# #?????????????????? | | ???################# #?# #?????????????????? | | #?# #?????????????????? | | %= #?# #?????????????????? | | [% #?# #?????????????????? | | ?################### #?# #?????????????????? | | ???????????????????#######?? #?????????????????? | | ???????????????????????????? #?????????????????? | | ???????????????????????????? #?????????????????? | | ???????????????????????????? ?????????????????? | | ???????????????????????????? ?????????????????? | | ???????????????????????????? ?????????????????? | | ????????????????????????????# #??????????????????? | | ?????????????????????????????????????????????????? | | ?????????????????????????????????????????????????? | | ?????????????????????????????????????????????????? | | ?????????????????????????????????????????????????? | | ?????????????????????????????????????????????????? | | ?????????????????????????????????????????????????? | | ?????????????????????????????????????????????????? | | ?????????????????????????????????????????????????? | | ?????????????????????????????????????????????????? | +----------------------------------------------------+ Best States ------------- Heat Dissipation 38 Energy Generation 17 Energy Capacity 400 Matter Stores 300 Matter Capacity 300 Sight Range 16 Terrain Scan Range 16 Terrain Scan Density 10 Utility Shielding 33 Evasion (%) 55 Item Schematics ----------------- None Robot Schematics ------------------ None Fabricated ------------ Nothing Repaired ---------- Nothing Alien Tech Used ----------------- None Achievements -------------- Crack Shot Challenges ------------ None Game ------ Seed MyomerDrainedStorage Manual? 0 Play Time 00:37:34 Cumulative 2.5 hours Start 2025.07.30 @ 13:02:49 End 2025.07.30 @ 13:42:28 Sessions 1 Manual Loads 0 Difficulty Rogue Special Mode None Game No. 4 Rogue 4 Adventurer 0 Explorer 0 Win Type - Total 0 Types 0/0/0/0/0/0/0/0/0/0 Lore% 0 Gallery% 3 Achievement% 4 Wizard Run 0 Options --------- Layout 2 ASCII 0 Keyboard 0 Movement Mouse Keybinds 0 Fullscreen 1 Font 24/Terminus Map View 25x24 Zoom Use 98% Tactical HUD 0 Map Filters NONE Filters NONE Steam 1 RUN: 508fe02a-41d5-49a6-9395-b29d325ebf00